bitfinex/quotes_BTCUSD_20250730
["timestamp","ask_amount","ask_price","bid_price","bid_amount"]
[1753880450126,0.0248719,117960.0,117950.0,0.73069355]
[1753880450556,0.03334891,117960.0,117950.0,0.71373802]
[1753880451268,0.05030344,117960.0,117950.0,0.21662]
[1753880451497,0.04183169,117960.0,117950.0,0.22509816]
[1753880452138,0.03335432,117960.0,117950.0,0.39466153]
[1753880452348,0.04183162,117960.0,117950.0,0.70526021]
[1753880452787,0.04183162,117960.0,117950.0,0.7137383]
[1753880453232,0.04183162,117960.0,117950.0,0.72221632]
[1753880453478,0.03335425,117960.0,117950.0,0.7306942]
[1753880453943,0.02487724,117960.0,117950.0,0.72221604]
[1753880454167,0.02487724,117960.0,117950.0,0.71373816]
[1753880454409,0.02487724,117960.0,117950.0,0.69678205]
[1753880454410,0.03335454,117960.0,117950.0,0.69678205]
[1753880454643,0.03335454,117960.0,117950.0,0.21662]
[1753880454644,0.21138097,117960.0,117950.0,0.21662]
[1753880454877,0.19442694,117960.0,117950.0,0.21453]
[1753880455634,0.0164003,117960.0,117950.0,0.39362153]
[1753880455869,0.0333544,117960.0,117950.0,0.41057764]
[1753880456333,0.04183177,117960.0,117950.0,0.21558]
[1753880456576,0.04183177,117960.0,117950.0,0.22405809]
[1753880456785,0.04183177,117960.0,117950.0,0.38514337]
[1753880457018,0.04183177,117960.0,117950.0,0.21558]
[1753880457223,0.04183177,117960.0,117950.0,0.22405816]
[1753880457652,0.0333544,117960.0,117950.0,0.40209955]
[1753880457861,0.02487717,117960.0,117950.0,0.78184438]
[1753880458069,0.01640008,117960.0,117950.0,0.79032204]
[1753880458279,0.01640008,117960.0,117950.0,0.79032211]
[1753880458491,0.01640008,117960.0,117950.0,0.79032161]
[1753880458707,0.02487709,117960.0,117950.0,0.78184395]
[1753880458899,0.02487709,117960.0,117950.0,0.578369]
[1753880458900,0.21138047,117960.0,117950.0,0.578369]
[1753880459173,0.21138047,117960.0,117950.0,0.21558]
[1753880460238,0.19442659,117960.0,117950.0,0.08642]
[1753880460474,0.18652714,117950.0,117940.0,0.023]
[1753880460690,0.19501375,117940.0,117930.0,0.08466857]
[1753880460907,0.19501375,117940.0,117930.0,0.39390016]
[1753880460908,0.0333585,117940.0,117930.0,0.39390016]
[1753880461130,0.0333585,117940.0,117930.0,0.39390023]
[1753880461369,0.04183717,117940.0,117930.0,0.3854207]
[1753880461578,0.0248799,117940.0,117930.0,0.40237954]
[1753880461791,0.0248799,117940.0,117930.0,0.41085878]
[1753880462018,0.0248799,117940.0,117930.0,0.40237954]
[1753880462439,0.0333585,117940.0,117930.0,0.40237954]
[1753880462674,0.00847795,117950.0,117940.0,0.00847874]
[1753880462887,0.18438946,117950.0,117940.0,0.62976556]
[1753880463101,0.06370741,117950.0,117940.0,0.6382443]
[1753880463570,0.06370741,117950.0,117940.0,0.64672282]
[1753880463571,0.00847759,117950.0,117940.0,0.64672282]
[1753880463788,0.01695532,117950.0,117940.0,0.65520127]
[1753880464039,0.01695532,117950.0,117940.0,0.6382443]
[1753880464268,0.02291314,117950.0,117940.0,0.6382443]
[1753880464479,0.03139094,117950.0,117940.0,0.62976556]
[1753880464710,0.03986889,117950.0,117940.0,0.46018788]
[1753880464925,0.21143312,117950.0,117940.0,0.451709]
[1753880465375,0.21141883,117950.0,117940.0,0.451709]
[1753880465590,0.21241883,117950.0,117940.0,0.451709]
[1753880465819,0.21341883,117950.0,117940.0,0.08892]
[1753880466014,0.01895568,117950.0,117940.0,0.08892]
[1753880466152,0.20447516,117950.0,117940.0,0.08892]
[1753880466363,0.04285509,117950.0,117940.0,0.08892]
[1753880466580,0.034377,117950.0,117940.0,0.25849775]
[1753880466827,0.02589869,117950.0,117940.0,0.63824416]
[1753880467037,0.02589869,117950.0,117940.0,0.64672268]
[1753880467038,0.00894314,117950.0,117940.0,0.64672268]
[1753880467259,0.001,117950.0,117940.0,0.65520106]
[1753880467479,0.00894266,117950.0,117940.0,0.65520106]
[1753880468335,0.034376,117950.0,117940.0,0.26697656]
[1753880468575,0.01795539,117950.0,117940.0,0.64672297]
[1753880468787,0.02543327,117950.0,117940.0,0.65520157]
[1753880469212,0.01695539,117950.0,117940.0,0.65620157]
[1753880469439,0.00847766,117950.0,117940.0,0.65620128]
[1753880469641,0.00847766,117950.0,117940.0,0.62960973]
[1753880469851,0.01642117,117950.0,117940.0,0.62960973]
[1753880470062,0.01642117,117950.0,117940.0,0.62213099]
[1753880470253,0.00794351,117950.0,117940.0,0.62213099]
[1753880470453,0.00794351,117950.0,117940.0,0.63060937]
[1753880471603,0.04238528,117960.0,117950.0,0.22444146]
[1753880471816,0.056287,117960.0,117950.0,0.36207948]
[1753880472028,0.056287,117960.0,117950.0,0.36712948]
[1753880472232,0.05032912,117960.0,117950.0,0.36712948]
[1753880472406,0.04185182,117960.0,117950.0,0.36712948]
[1753880472609,0.04185182,117960.0,117950.0,0.37560736]
[1753880472813,0.03337466,117960.0,117950.0,0.37560736]
[1753880473020,0.03437466,117960.0,117950.0,0.37560743]
[1753880473224,0.00894384,117960.0,117950.0,0.75535189]
[1753880474014,0.001,117960.0,117950.0,0.75535189]
[1753880474697,0.001,117960.0,117950.0,0.75635189]
[1753880474913,0.001,117960.0,117950.0,0.87589919]
[1753880475891,0.0089458,117960.0,117950.0,0.87589927]
[1753880476213,0.001,117960.0,117950.0,0.87589927]
[1753880476581,0.21171211,117980.0,117950.0,0.87589927]
[1753880476582,0.44692805,117980.0,117950.0,0.81254316]
[1753880476786,0.01695238,117970.0,117960.0,0.25716899]
[1753880477011,0.01695238,117970.0,117960.0,0.41376082]
[1753880477470,0.01695238,117970.0,117960.0,0.42223791]
[1753880477611,0.00847608,117970.0,117960.0,0.42223791]
[1753880477990,0.00847608,117970.0,117960.0,0.43071492]
[1753880478204,0.0169523,117970.0,117960.0,0.42223748]
[1753880478855,0.01695223,117970.0,117960.0,0.42223748]
[1753880479083,0.02542853,117970.0,117960.0,0.41376047]
[1753880479322,0.01695223,117970.0,117960.0,0.42223748]
[1753880479555,0.01695223,117970.0,117960.0,0.41376047]
[1753880479792,0.01695223,117970.0,117960.0,0.42223748]
[1753880480006,0.02542853,117970.0,117960.0,0.41376047]
[1753880480235,0.01695223,117970.0,117960.0,0.41376047]
[1753880480453,0.01695223,117970.0,117960.0,0.42223748]
[1753880480933,0.02542853,117970.0,117960.0,0.41376047]
[1753880481383,0.02542853,117970.0,117960.0,0.40528338]
[1753880481584,0.02542853,117970.0,117960.0,0.41376047]
[1753880481818,0.01695223,117970.0,117960.0,0.43071442]
[1753880482057,0.01695223,117970.0,117960.0,0.78502648]
[1753880482480,0.02542845,117970.0,117960.0,0.76807238]
[1753880482701,0.02542845,117970.0,117960.0,0.77654947]
[1753880483539,0.02542845,117970.0,117960.0,0.78502648]
[1753880483742,0.01695223,117970.0,117960.0,0.79350342]
[1753880483952,0.01695223,117970.0,117960.0,0.41376082]
[1753880483953,0.0254286,117970.0,117960.0,0.41376082]
[1753880484169,0.01695223,117970.0,117960.0,0.42223783]
[1753880484367,0.02542845,117970.0,117960.0,0.42223783]
[1753880484583,0.02542845,117970.0,117960.0,0.42223791]
[1753880485218,0.01695223,117970.0,117960.0,0.42223748]
[1753880485647,0.01695223,117970.0,117960.0,0.41376047]
[1753880485908,0.02542845,117970.0,117960.0,0.41376047]
[1753880486121,0.03390475,117970.0,117960.0,0.41376047]
[1753880486307,0.03390475,117970.0,117960.0,0.40528338]
[1753880486504,0.02542853,117970.0,117960.0,0.41376047]
[1753880486702,0.02542853,117970.0,117960.0,0.40528338]
[1753880486942,0.16952187,117980.0,117970.0,0.0247]
[1753880487356,0.17799773,117980.0,117970.0,0.0247]
[1753880487783,0.17799773,117980.0,117970.0,0.08499]
[1753880488437,0.17899773,117980.0,117970.0,0.08499]
[1753880488645,0.18693946,117980.0,117970.0,0.08499]
[1753880488852,0.19541511,117980.0,117970.0,0.08499]
[1753880489274,0.19641511,117980.0,117970.0,0.08499]
[1753880489544,0.23095143,117980.0,117970.0,0.08499]
[1753880490171,0.23095143,117980.0,117970.0,0.08702]
[1753880490380,0.06990557,117980.0,117970.0,0.08702]
[1753880490593,0.06990471,117980.0,117970.0,0.27350771]
[1753880490800,0.06142906,117980.0,117970.0,0.28198415]
[1753880491252,0.05295348,117980.0,117970.0,0.29046052]
[1753880491635,0.05295348,117980.0,117970.0,0.28198415]
[1753880491857,0.06142906,117980.0,117970.0,0.28198415]
[1753880492254,0.04447805,117980.0,117970.0,0.65324937]
[1753880493923,0.00994173,117980.0,117970.0,0.65324937]
[1753880494145,0.002,117980.0,117970.0,0.65324937]
[1753880494358,0.01047536,117980.0,117970.0,0.28198415]
[1753880494570,0.21336472,117980.0,117970.0,0.08702]
[1753880494758,0.57615372,117980.0,117970.0,0.08177]
[1753880494955,0.02542903,117970.0,117960.0,0.21331]
[1753880495166,0.21138197,117970.0,117960.0,0.21331]
[1753880495391,0.03337119,117970.0,117960.0,0.21331]
[1753880495598,0.20290581,117970.0,117960.0,0.21331]
[1753880495799,0.02489411,117970.0,117960.0,0.39981366]
[1753880495999,0.00794173,117970.0,117960.0,0.78158676]
[1753880496205,0.04284554,117980.0,117970.0,0.0469]
[1753880496443,0.21236577,117980.0,117970.0,0.08602]
[1753880496913,0.21136577,117980.0,117970.0,0.08602]
[1753880497406,0.19441469,117980.0,117970.0,0.08602]
[1753880498700,0.18693883,117980.0,117970.0,0.08602]
[1753880499537,0.18793883,117980.0,117970.0,0.08602]
[1753880501085,0.18794064,117980.0,117970.0,0.08602]
[1753880501972,0.00847665,117970.0,117960.0,0.19041]
[1753880502190,0.00847665,117970.0,117960.0,0.21754]
[1753880502420,0.0164211,117970.0,117960.0,0.21754]
[1753880502650,0.19443223,117970.0,117960.0,0.08842]
[1753880502893,0.57579123,117970.0,117960.0,0.12908]
[1753880503134,0.19498067,117960.0,117950.0,0.21287]
[1753880503371,0.55723711,117960.0,117950.0,0.18997]
[1753880503600,0.19444811,117960.0,117950.0,0.18997]
[1753880503830,0.19444811,117960.0,117950.0,0.21267]
[1753880504285,0.19444811,117960.0,117950.0,0.21367]
[1753880504493,0.19444811,117960.0,117950.0,0.21045]
[1753880504767,0.19444811,117960.0,117950.0,0.21145]
[1753880504975,0.18597088,117960.0,117950.0,0.21145]
[1753880505201,0.18597088,117960.0,117950.0,0.21045]
[1753880505424,1.53329618,117960.0,117950.0,0.001]
[1753880505641,1.53330415,117960.0,117950.0,0.001]
[1753880505869,1.55879115,117960.0,117950.0,0.001]
[1753880506098,0.19502964,117930.0,117920.0,0.21541]
[1753880506324,0.2035091,117930.0,117920.0,0.21748857]
[1753880506537,0.2119887,117930.0,117920.0,0.08836857]
[1753880506756,0.04239657,117930.0,117920.0,0.08836857]
[1753880506977,0.03391697,117930.0,117920.0,0.08836857]
[1753880507186,0.03391697,117930.0,117920.0,0.09684889]
[1753880507614,0.02543801,117930.0,117920.0,0.08836857]
[1753880507829,0.03391697,117930.0,117920.0,0.08836857]
[1753880508000,0.04239657,117930.0,117920.0,0.08836857]
[1753880508206,0.03391697,117930.0,117920.0,0.08836857]
[1753880508424,0.02543751,117930.0,117920.0,0.09684882]
[1753880508856,0.03391704,117930.0,117920.0,0.08836857]
[1753880509210,0.01695812,117930.0,117920.0,0.27493536]
[1753880509710,0.02543743,117930.0,117920.0,0.26645526]
[1753880509923,0.02543736,117930.0,117920.0,0.27493536]
[1753880510102,0.04236964,117930.0,117920.0,0.28341539]
[1753880510330,0.01695805,117930.0,117920.0,0.29189535]
[1753880510541,0.01695805,117930.0,117920.0,0.27493536]
[1753880510695,0.01695805,117930.0,117920.0,0.28341539]
[1753880510896,0.01695805,117930.0,117920.0,0.29189535]
[1753880511103,0.01695805,117930.0,117920.0,0.25797508]
[1753880511303,0.04239621,117930.0,117920.0,0.08836857]
[1753880511517,0.03391661,117930.0,117920.0,0.08836857]
[1753880511730,0.04239614,117930.0,117920.0,0.08836857]
[1753880511936,0.03391653,117930.0,117920.0,0.26645526]
[1753880512413,0.02543722,117930.0,117920.0,0.27493529]
[1753880512622,0.01695805,117930.0,117920.0,0.28341525]
[1753880512988,0.01695805,117930.0,117920.0,0.27493529]
[1753880513227,0.02543729,117930.0,117920.0,0.27493529]
[1753880513521,0.02543729,117930.0,117920.0,0.27493536]
[1753880513743,0.02543729,117930.0,117920.0,0.26645526]
[1753880514215,0.02543729,117930.0,117920.0,0.08836857]
[1753880514216,0.03391668,117930.0,117920.0,0.08836857]
[1753880514433,0.20350946,117930.0,117920.0,0.08836857]
[1753880514648,0.02543773,117930.0,117920.0,0.09684889]
[1753880514881,0.0084791,117930.0,117920.0,0.28341568]
[1753880515289,0.01695834,117930.0,117920.0,0.2664554]
[1753880515582,0.02543773,117930.0,117920.0,0.27493565]
[1753880515739,0.01695834,117930.0,117920.0,0.28341583]
[1753880515943,0.02543773,117930.0,117920.0,0.27493565]
[1753880516738,0.02543773,117930.0,117920.0,0.28341583]
[1753880516994,0.03388948,117930.0,117920.0,0.30037575]
[1753880517244,0.31565572,117940.0,117930.0,0.0511]
[1753880517489,0.154556,117940.0,117930.0,0.09033]
[1753880517726,0.0084778,117950.0,117930.0,0.76894292]
[1753880517965,0.01695539,117950.0,117940.0,0.08527]
[1753880518220,0.07619999,117950.0,117940.0,0.08743]
[1753880518438,0.04184473,117950.0,117940.0,0.08743]
[1753880519110,0.04184385,117950.0,117940.0,0.08743]
[1753880519314,0.03336576,117950.0,117940.0,0.09590888]
[1753880519726,0.03336576,117950.0,117940.0,0.27396544]
[1753880519975,0.03336569,117950.0,117940.0,0.28244418]
[1753880520185,0.04184371,117950.0,117940.0,0.26548663]
[1753880520400,0.04184371,117950.0,117940.0,0.09590888]
[1753880520592,0.04184371,117950.0,117940.0,0.08743]
[1753880520815,0.21988524,117950.0,117940.0,0.08743]
[1753880520965,0.25453365,117950.0,117940.0,0.08743]
[1753880521168,0.24605606,117950.0,117940.0,0.08743]
[1753880521388,0.07649269,117950.0,117940.0,0.08743]
[1753880521825,0.2375779,117950.0,117940.0,0.08743]
[1753880522175,0.00847845,117940.0,117930.0,0.19239]
[1753880522374,0.02543557,117940.0,117930.0,0.21725]
[1753880522651,0.03391424,117940.0,117930.0,0.21725]
[1753880522860,0.04239262,117940.0,117930.0,0.21725]
[1753880523133,0.02543507,117940.0,117930.0,0.39532166]
[1753880523401,0.01695662,117940.0,117930.0,0.41228043]
[1753880523657,0.02543522,117940.0,117930.0,0.40380112]
[1753880523871,0.02543522,117940.0,117930.0,0.40580112]
[1753880524315,0.02543514,117940.0,117930.0,0.41428051]
[1753880524736,0.01695662,117940.0,117930.0,0.41428051]
[1753880524941,0.01695662,117940.0,117930.0,0.42275982]
[1753880525121,0.02543514,117940.0,117930.0,0.41428051]
[1753880525374,0.01695662,117940.0,117930.0,0.42275982]
[1753880525601,0.02543514,117940.0,117930.0,0.41428051]
[1753880525848,0.01695662,117940.0,117930.0,0.42275975]
[1753880526076,0.20421178,117950.0,117940.0,0.0519]
[1753880526077,0.06008182,117950.0,117940.0,0.0519]
[1753880526312,0.06801581,117950.0,117940.0,0.09113]
[1753880526560,0.06801574,117950.0,117940.0,0.26070775]
[1753880526775,0.06801567,117950.0,117940.0,0.26070775]
[1753880526986,0.06801567,117950.0,117940.0,0.26918656]
[1753880527799,0.07649369,117950.0,117940.0,0.09960888]
[1753880528020,0.25453515,117950.0,117940.0,0.09113]
[1753880528259,0.24605756,117950.0,117940.0,0.09113]
[1753880528483,0.25453572,117950.0,117940.0,0.09113]
[1753880528690,0.07649419,117950.0,117940.0,0.09113]
[1753880528895,0.05105992,117950.0,117940.0,0.27766516]
[1753880529115,0.06801531,117950.0,117940.0,0.27766523]
[1753880529343,0.07649305,117950.0,117940.0,0.26918656]
[1753880529555,0.08497107,117950.0,117940.0,0.26918663]
[1753880529756,0.07649305,117950.0,117940.0,0.26918663]
[1753880529999,0.08497107,117950.0,117940.0,0.09113]
[1753880530210,0.08497107,117950.0,117940.0,0.09960888]
[1753880530417,0.07703708,117950.0,117940.0,0.09960888]
[1753880531045,0.23812343,117950.0,117940.0,0.09113]
[1753880531277,0.22964577,117950.0,117940.0,0.09113]
[1753880531701,0.05991704,117950.0,117940.0,0.09113]
[1753880531890,0.23742117,117950.0,117940.0,0.09113]
[1753880532090,0.24589933,117950.0,117940.0,0.09113]
[1753880532337,0.05991704,117950.0,117940.0,0.09113]
[1753880532547,0.22948041,117950.0,117940.0,0.09113]
[1753880532756,0.05991704,117950.0,117940.0,0.09113]
[1753880533219,0.23742352,117950.0,117940.0,0.09113]
[1753880533453,0.22948041,117950.0,117940.0,0.09113]
[1753880533685,0.23742572,117950.0,117940.0,0.09113]
[1753880534334,0.22948041,117950.0,117940.0,0.09113]
[1753880534533,0.23742884,117950.0,117940.0,0.09113]
[1753880535106,0.22895096,117950.0,117940.0,0.09113]
[1753880535788,0.22047294,117950.0,117940.0,0.08897]
[1753880536219,0.22643751,117950.0,117940.0,0.08897]
[1753880536716,0.36403539,117950.0,117940.0,0.09113]
[1753880538158,0.19447159,117950.0,117940.0,0.09113]
[1753880538380,0.18850702,117950.0,117940.0,0.26918663]
[1753880538822,0.19698504,117950.0,117940.0,0.26918663]
[1753880539074,0.23742841,117950.0,117940.0,0.09113]
[1753880539298,0.22895075,117950.0,117940.0,0.09113]
[1753880539942,0.22047287,117950.0,117940.0,0.09113]
[1753880540974,0.16957775,117940.0,117930.0,0.12912]
[1753880541195,0.54882388,117940.0,117930.0,0.21669]
[1753880542037,0.18600492,117940.0,117930.0,0.21669]
[1753880542413,0.18600492,117940.0,117930.0,0.21885]
[1753880542849,0.18600492,117940.0,117930.0,0.21985]
[1753880543510,0.18600492,117940.0,117930.0,0.21885]
[1753880544236,0.00794843,117940.0,117930.0,0.38844213]
[1753880544467,0.05091703,117950.0,117940.0,0.22855649]
[1753880544692,0.00795619,117950.0,117940.0,0.64756243]
[1753880545348,0.04186453,117960.0,117940.0,0.65006243]
[1753880545557,0.04782771,117960.0,117950.0,0.58196896]
[1753880545783,0.06373565,117960.0,117950.0,0.21915]
[1753880546011,0.23328464,117960.0,117950.0,0.22131]
[1753880546651,0.17802615,117960.0,117950.0,0.22131]
[1753880546792,0.21266734,117960.0,117950.0,0.22131]
[1753880547006,0.22114471,117960.0,117950.0,0.22131]
[1753880547219,0.22962172,117960.0,117950.0,0.22131]
[1753880547634,0.22962172,117960.0,117950.0,0.21915]
[1753880547635,0.22962215,117960.0,117950.0,0.21915]
[1753880547835,0.22962215,117960.0,117940.0,0.19309]
[1753880547836,0.17804139,117950.0,117940.0,0.19309]
[1753880548324,0.68834035,117950.0,117940.0,0.0276]
[1753880548521,0.68834035,117950.0,117940.0,0.001]
[1753880549711,0.46973085,117950.0,117940.0,0.001]
[1753880549936,0.75174954,117950.0,117940.0,0.001]
[1753880550154,0.0084791,117930.0,117920.0,0.3698254]
[1753880550370,0.0084791,117930.0,117920.0,0.3648454]
[1753880550633,0.01695834,117930.0,117920.0,0.37032558]
[1753880551071,0.01695834,117930.0,117920.0,0.22864889]
[1753880551285,0.19502986,117930.0,117920.0,0.22016857]
[1753880551492,0.03391726,117930.0,117920.0,0.22016857]
[1753880551705,0.76011176,117950.0,117920.0,0.22016857]
[1753880551908,0.02543823,117930.0,117920.0,0.22216857]
[1753880552173,0.02543773,117930.0,117920.0,0.22216857]
[1753880552386,0.20350939,117930.0,117920.0,0.22216857]
[1753880552553,0.20350939,117930.0,117920.0,0.22316857]
[1753880552758,0.01695834,117930.0,117920.0,0.23164882]
[1753880552995,0.19502993,117930.0,117920.0,0.22316857]
[1753880553187,0.20350946,117930.0,117920.0,0.22316857]
[1753880553749,0.01695834,117930.0,117920.0,0.24012914]
[1753880553970,0.01695834,117930.0,117920.0,0.22316857]
[1753880554190,0.02543765,117930.0,117920.0,0.22316857]
[1753880554423,0.0084791,117930.0,117920.0,0.23164889]
[1753880554656,0.0084791,117930.0,117920.0,0.39277508]
[1753880554657,0.01695827,117930.0,117920.0,0.39277508]
[1753880554843,0.0084791,117930.0,117920.0,0.40125526]
[1753880555330,0.00847903,117930.0,117920.0,0.40973529]
[1753880555555,0.00847903,117930.0,117920.0,0.40973536]
[1753880555773,0.0169582,117930.0,117920.0,0.40125526]
[1753880556231,0.0169582,117930.0,117920.0,0.39277508]
[1753880556474,0.0169582,117930.0,117920.0,0.40973551]
[1753880557468,0.0844773,117950.0,117930.0,0.18655097]
[1753880557667,0.23899057,117950.0,117940.0,0.05523]
[1753880557873,0.23899057,117950.0,117940.0,0.26969649]
[1753880557874,0.13755759,117950.0,117940.0,0.26969649]
[1753880558055,0.01695532,117950.0,117940.0,0.09164]
[1753880558319,0.2119526,117950.0,117940.0,0.09164]
[1753880558542,0.21142766,117950.0,117940.0,0.09164]
[1753880559147,0.20294993,117950.0,117940.0,0.09164]
[1753880559554,0.20891502,117950.0,117940.0,0.09164]
[1753880560211,0.20043722,117950.0,117940.0,0.09164]
[1753880560858,0.19195927,117950.0,117940.0,0.09164]
[1753880561082,0.20786578,117950.0,117940.0,0.08961]
[1753880561306,0.20786578,117950.0,117940.0,0.06241]
[1753880561535,0.18653523,117940.0,117930.0,0.08871]
[1753880561763,0.20296677,117940.0,117930.0,0.09074]
[1753880562686,0.20296677,117940.0,117930.0,0.09274]
[1753880564210,0.03338902,117940.0,117930.0,0.09274]
[1753880564844,0.20296677,117940.0,117930.0,0.09274]
[1753880566859,0.02491021,117940.0,117930.0,0.1012196]
[1753880567073,0.02491021,117940.0,117930.0,0.09274]
[1753880567208,0.03338902,117940.0,117930.0,0.09274]
[1753880567452,0.20296677,117940.0,117930.0,0.09274]
[1753880568125,0.02491021,117940.0,117930.0,0.09274]
[1753880568566,0.03338902,117940.0,117930.0,0.09274]
[1753880569182,0.02491021,117940.0,117930.0,0.09274]
[1753880569392,0.03338902,117940.0,117930.0,0.09274]
[1753880569982,0.02491021,117940.0,117930.0,0.09274]
[1753880570189,0.03338902,117940.0,117930.0,0.09274]
[1753880571180,0.20296677,117940.0,117930.0,0.09274]
[1753880572230,0.03338902,117940.0,117930.0,0.09274]
[1753880572420,0.20296677,117940.0,117930.0,0.09274]
[1753880573953,0.55730721,117940.0,117930.0,0.21979]
[1753880574193,0.70975721,117940.0,117930.0,0.002]
[1753880574661,0.34693825,117940.0,117930.0,0.002]
[1753880574883,0.32356825,117940.0,117930.0,0.002]
[1753880575101,0.32356825,117940.0,117930.0,0.001]
[1753880575329,0.32356825,117940.0,117920.0,0.21593857]
[1753880575691,0.01695812,117930.0,117920.0,0.22441889]
[1753880575922,0.02491114,117930.0,117920.0,0.22644889]
[1753880576122,0.03339045,117930.0,117920.0,0.23492914]
[1753880576350,0.04186991,117930.0,117920.0,0.21796857]
[1753880576981,0.03339045,117930.0,117920.0,0.22644889]
[1753880577146,0.04186998,117930.0,117920.0,0.21796857]
[1753880577549,0.03339045,117930.0,117920.0,0.21796857]
[1753880577956,0.03339045,117930.0,117920.0,0.22644889]
[1753880578354,0.03339045,117930.0,117920.0,0.22744889]
[1753880578560,0.04186991,117930.0,117920.0,0.21896857]
[1753880578793,0.03339045,117930.0,117920.0,0.21896857]
[1753880579191,0.03339045,117930.0,117920.0,0.21996857]
[1753880579559,0.04186991,117930.0,117920.0,0.21996857]
[1753880580340,0.05034944,117930.0,117920.0,0.21996857]
[1753880580569,0.21146262,117930.0,117920.0,0.21996857]
[1753880581102,0.20298345,117930.0,117920.0,0.21996857]
[1753880582011,0.21146305,117930.0,117920.0,0.21996857]
[1753880583121,0.21146305,117930.0,117920.0,0.22844889]
[1753880583122,0.02491143,117930.0,117920.0,0.22844889]
[1753880583314,0.02491143,117930.0,117920.0,0.40653565]
[1753880583733,0.00795302,117930.0,117920.0,0.78631475]
[1753880583933,0.00847895,117930.0,117920.0,0.77783479]
[1753880584161,0.05034571,117940.0,117920.0,0.72743457]
[1753880584378,0.05034571,117940.0,117930.0,0.00308]
[1753880584587,0.05034571,117940.0,117930.0,0.40501896]
[1753880584808,0.21144522,117940.0,117930.0,0.46251896]
[1753880585052,0.03338809,117940.0,117930.0,0.64059062]
[1753880585262,0.02490957,117940.0,117930.0,0.64059062]
[1753880585467,0.02490957,117940.0,117930.0,0.63211109]
[1753880585684,0.21992318,117940.0,117930.0,0.46251896]
[1753880585898,0.21144494,117940.0,117930.0,0.0997]
[1753880586559,0.04186967,117940.0,117930.0,0.0997]
[1753880587033,0.0418696,117940.0,117930.0,0.0997]
[1753880587448,0.20296904,117940.0,117930.0,0.22878]
[1753880588535,0.19449059,117940.0,117930.0,0.22878]
[1753880590402,0.02491284,117940.0,117930.0,0.22878]
[1753880590643,0.03339165,117940.0,117930.0,0.22878]
[1753880590846,0.01032821,117950.0,117930.0,0.22878]
[1753880591090,0.01695741,117940.0,117930.0,0.19168]
[1753880591339,0.02543615,117940.0,117930.0,0.19168]
[1753880591554,0.1950139,117940.0,117930.0,0.19168]
[1753880591760,0.1950139,117940.0,117930.0,0.22878]
[1753880594401,0.1950139,117940.0,117930.0,0.0709]
[1753880594626,0.1865353,117940.0,117930.0,0.06888]
[1753880595476,0.01695726,117940.0,117930.0,0.09608]
[1753880595678,0.01695726,117940.0,117930.0,0.0981]
[1753880596297,0.02543614,117940.0,117930.0,0.0981]
[1753880596500,0.19501389,117940.0,117930.0,0.0981]
[1753880597174,0.02543614,117940.0,117930.0,0.0981]
[1753880597724,0.01695726,117940.0,117930.0,0.0981]
[1753880597985,0.02543614,117940.0,117930.0,0.0981]
[1753880598193,0.19501389,117940.0,117930.0,0.0981]
[1753880598819,0.01695726,117940.0,117930.0,0.0981]
[1753880599053,0.19501389,117940.0,117930.0,0.0981]
[1753880601948,0.18653537,117940.0,117930.0,0.04018]
[1753880602360,0.18653537,117940.0,117930.0,0.06978]
[1753880602568,0.18653537,117940.0,117930.0,0.09868]
[1753880602718,0.18653537,117940.0,117930.0,0.1007]
[1753880603061,0.19449356,117940.0,117930.0,0.1007]
[1753880603986,0.19449366,117940.0,117930.0,0.1007]
[1753880604421,0.18601492,117940.0,117930.0,0.1007]
[1753880608772,0.27998657,117930.0,117920.0,0.16838857]
[1753880609401,0.28098657,117930.0,117920.0,0.16838857]
[1753880610449,0.65466553,117930.0,117920.0,4.857e-05]
[1753880611058,0.64380553,117930.0,117920.0,4.857e-05]
[1753880611288,0.28098657,117930.0,117920.0,4.857e-05]
[1753880611976,0.29184657,117930.0,117920.0,4.857e-05]
[1753880612416,0.34684657,117930.0,117920.0,4.857e-05]
[1753880612625,0.28098657,117930.0,117920.0,4.857e-05]
[1753880612832,0.28098657,117930.0,117920.0,0.03618857]
[1753880613045,0.30286184,117930.0,117920.0,0.03618857]
[1753880615114,0.30286184,117930.0,117920.0,0.09800857]
[1753880615616,0.28695263,117930.0,117920.0,0.09800857]
[1753880615860,0.21095486,117930.0,117920.0,0.46082753]
[1753880616106,0.2049888,117930.0,117920.0,0.09800857]
[1753880616289,0.2049888,117930.0,117920.0,0.46082753]
[1753880616736,0.18802995,117930.0,117920.0,0.09800857]
[1753880617903,0.19399125,117930.0,117920.0,0.22704857]
[1753880618608,0.18802995,117930.0,117920.0,0.22704857]
[1753880618833,0.1939907,117930.0,117920.0,0.22704857]
[1753880619055,0.18802995,117930.0,117920.0,0.22704857]
[1753880619245,0.18802995,117930.0,117920.0,0.09800857]
[1753880619553,0.18802995,117930.0,117920.0,0.22704857]
[1753880620044,0.19399046,117930.0,117920.0,0.22704857]
[1753880620291,0.19397952,117930.0,117920.0,0.22704857]
[1753880621430,0.18801901,117930.0,117920.0,0.22704857]
[1753880621882,0.18801901,117930.0,117920.0,0.09800857]
[1753880622151,0.27249631,117930.0,117920.0,0.09800857]
[1753880622389,0.64127523,117930.0,117920.0,0.03618857]
[1753880622639,0.66802838,117930.0,117920.0,4.857e-05]
[1753880623376,0.30520942,117930.0,117920.0,4.857e-05]
[1753880623591,0.65716838,117930.0,117920.0,4.857e-05]
[1753880624325,0.29434942,117930.0,117920.0,0.07130857]
[1753880624565,0.29434942,117930.0,117920.0,0.10040857]
[1753880626180,0.41597558,117930.0,117920.0,0.10040857]
[1753880626427,0.41597558,117930.0,117920.0,0.46322753]
[1753880626661,0.01842645,117930.0,117920.0,0.46322753]
[1753880626890,0.02690547,117930.0,117920.0,0.64131429]
[1753880627353,0.0269054,117930.0,117920.0,0.64979447]
[1753880627580,0.00994735,117930.0,117920.0,0.67523428]
[1753880627809,0.02490182,117940.0,117930.0,0.23377159]
[1753880628087,0.03933932,117940.0,117930.0,0.54971896]
[1753880628355,0.04781799,117940.0,117930.0,0.58901896]
[1753880628563,0.04185909,117940.0,117930.0,0.58901896]
[1753880628794,0.03338042,117940.0,117930.0,0.59749856]
[1753880629115,0.03338078,117940.0,117930.0,0.58901896]
[1753880629343,0.02490218,117940.0,117930.0,0.59749856]
[1753880629564,0.0164238,117940.0,117930.0,0.77557015]
[1753880629759,0.0164238,117940.0,117930.0,0.78404946]
[1753880629989,0.0174238,117940.0,117930.0,0.78404946]
[1753880630175,0.02590218,117940.0,117930.0,0.78404946]
[1753880630382,0.02590211,117940.0,117930.0,0.77557015]
[1753880630586,0.02590211,117940.0,117930.0,0.78404954]
[1753880630802,0.03438049,117940.0,117930.0,0.78404954]
[1753880631488,0.04385894,117940.0,117930.0,0.58901896]
[1753880631695,0.04385894,117940.0,117930.0,0.76709062]
[1753880631915,0.04385894,117940.0,117930.0,0.77557008]